[Event "NJSK 2026 Jeugd B"]
[Site "Helmond, Netherlands"]
[Date "2026.05.01"]
[Round "10.3"]
[White "Aravindhan, Achyuth"]
[Black "Zecha, Oscar"]
[Result "0-1"]
[TimeControl "90min/40moves + 30min + 30sec/move"]
[WhiteTitle "-"]
[BlackTitle "-"]
[WhiteFideId "1084216"]
[BlackFideId "1073826"]
[WhiteElo "2277"]
[BlackElo "2120"]

1. e4 {[%clk 00:05:04]} {[%emt 00:00:05]} e5 {[%clk 00:05:06]} {[%emt
00:00:01]} 2. Nf3 {[%clk 00:05:06]} Nc6 {[%clk 00:05:08]} 3. g3 {[%clk
00:05:08]} {[%emt 00:00:06]} Nf6 {[%clk 00:04:51]} {[%emt 00:00:34]} 4. d3
{[%clk 00:05:10]} g6 {[%clk 00:04:43]} 5. Bg2 {[%clk 00:05:08]} Bg7 {[%clk
00:04:45]} 6. c4 {[%clk 00:05:03]} {[%emt 00:00:04]} d6 {[%clk 00:04:44]}
{[%emt 00:00:04]} 7. Nc3 {[%clk 00:05:01]} {[%emt 00:00:05]} Bg4 {[%clk
00:04:36]} {[%emt 00:00:10]} 8. Be3 {[%emt 00:00:21]} O-O {[%clk 00:04:34]}
{[%emt 00:00:02]} 9. Qd2 {[%clk 00:04:32]} {[%emt 00:00:17]} Nd7 {[%clk
00:04:22]} {[%emt 00:00:15]} 10. O-O-O {[%clk 00:04:08]} {[%emt 00:00:27]} Nd4
{[%clk 00:03:59]} {[%emt 00:00:27]} 11. Bxd4 {[%clk 00:04:01]} {[%emt
00:00:10]} exd4 {[%clk 00:04:01]} {[%emt 00:00:01]} 12. Ne2 {[%clk 00:04:00]}
{[%emt 00:00:04]} Rb8 {[%clk 00:03:16]} {[%emt 00:00:48]} 13. h3 {[%clk
00:03:31]} {[%emt 00:00:33]} Bxf3 {[%clk 00:03:18]} {[%emt 00:00:01]} 14. Bxf3
{[%clk 00:03:33]} b5 {[%clk 00:03:13]} {[%emt 00:00:08]} 15. cxb5 {[%clk
00:03:31]} {[%emt 00:00:05]} Rxb5 {[%clk 00:03:15]} 16. h4 {[%clk 00:03:27]}
{[%emt 00:00:07]} Ne5 {[%clk 00:02:57]} {[%emt 00:00:21]} 17. Bg2 {[%clk
00:03:25]} {[%emt 00:00:05]} Ng4 {[%clk 00:02:59]} {[%emt 00:00:01]} 18. Nf4
{[%clk 00:02:36]} {[%emt 00:00:52]} h5 {[%clk 00:02:38]} {[%emt 00:00:24]} 19.
Bh3 {[%clk 00:02:19]} {[%emt 00:00:20]} Ne5 {[%clk 00:02:26]} {[%emt 00:00:16]}
20. Kb1 {[%clk 00:02:01]} {[%emt 00:00:21]} c5 {[%clk 00:02:13]} {[%emt
00:00:15]} 21. Rc1 {[%clk 00:01:44]} {[%emt 00:00:21]} Bh6 {[%clk 00:01:43]}
{[%emt 00:00:33]} 22. Qe2 {[%clk 00:01:22]} {[%emt 00:00:24]} Qb6 {[%clk
00:01:13]} {[%emt 00:00:33]} 23. Nd5 {[%clk 00:01:08]} {[%emt 00:00:17]} Rxb2+
{[%clk 00:00:34]} {[%emt 00:00:42]} 24. Qxb2 {[%clk 00:00:45]} {[%emt
00:00:26]} Qxb2+ {[%clk 00:00:35]} {[%emt 00:00:01]} 25. Kxb2 {[%clk 00:00:48]}
Nxd3+ {[%clk 00:00:37]} {[%emt 00:00:01]} 26. Kc2 {[%clk 00:00:44]} {[%emt
00:00:06]} Nxf2 {[%clk 00:00:12]} {[%emt 00:00:29]} 27. Bg2 {[%clk 00:00:21]}
{[%emt 00:00:26]} d3+ {[%clk 00:00:11]} {[%emt 00:00:05]} 28. Kc3 {[%clk
00:00:13]} {[%emt 00:00:09]} Bg7+ {[%clk 00:00:06]} {[%emt 00:00:09]} 29. Kd2
{[%clk 00:00:10]} {[%emt 00:00:05]} Bh6+ {[%clk 00:00:09]} {[%emt 00:00:02]} 30.
Kc3 {[%clk 00:00:13]} Bg7+ {[%clk 00:00:05]} {[%emt 00:00:06]} 31. Kd2 {[%clk
00:00:10]} {[%emt 00:00:06]} Bh6+ {[%clk 00:00:07]} {[%emt 00:00:01]} 32. Kc3
{[%clk 00:00:08]} {[%emt 00:00:05]} d2 {[%clk 00:00:07]} {[%emt 00:00:04]} 33.
Rcd1 {[%emt 00:00:05]} Rb8 {[%clk 00:00:08]} 34. Rhf1 {[%clk 00:00:06]} {[%emt
00:00:07]} Nxd1+ {[%clk 00:00:10]} {[%emt 00:00:01]} 35. Rxd1 {[%clk 00:00:09]}
Rb5 {[%clk 00:00:05]} {[%emt 00:00:05]} 36. Nf4 {[%clk 00:00:07]} {[%emt
00:00:06]} Ra5 {[%clk 00:00:04]} {[%emt 00:00:04]} 37. Rxd2 {[%clk 00:00:07]}
{[%emt 00:00:04]} Ra3+ {[%clk 00:00:07]} 38. Kb2 {[%clk 00:00:04]} {[%emt
00:00:06]} Rxg3 {[%clk 00:00:08]} {[%emt 00:00:01]} 39. Rf2 {[%clk 00:00:04]}
{[%emt 00:00:02]} Bxf4 {[%clk 00:00:10]} 40. Rxf4 {[%clk 00:00:06]} Rxg2+
{[%clk 00:00:13]} {[%emt 00:00:02]} 41. Kb3 {[%clk 00:00:09]} {[%emt 00:00:04]}
Rg4 {[%clk 00:00:11]} {[%emt 00:00:07]} 42. Rf6 {[%clk 00:00:10]} {[%emt
00:00:01]} Rxh4 {[%clk 00:00:11]} {[%emt 00:00:02]} 43. Rxd6 {[%clk 00:00:12]}
Rxe4 {[%clk 00:00:12]} 44. Ra6 {[%clk 00:00:11]} Re7 {[%clk 00:00:10]} {[%emt
00:00:05]} 45. Kc4 {[%clk 00:00:13]} h4 {[%clk 00:00:10]} {[%emt 00:00:03]} 46.
Kxc5 {[%clk 00:00:15]} {[%emt 00:00:01]} g5 {[%clk 00:00:06]} {[%emt 00:00:07]}
47. Ra3 {[%clk 00:00:04]} {[%emt 00:00:15]} Kg7 {[%clk 00:00:04]} {[%emt
00:00:05]} 48. Kd6 {[%clk 00:00:05]} {[%emt 00:00:02]} Rb7 {[%clk 00:00:05]}
{[%emt 00:00:01]} 49. Ke5 {[%clk 00:00:05]} {[%emt 00:00:04]} f6+ {[%clk
00:00:06]} {[%emt 00:00:02]} 50. Kf5 {[%clk 00:00:07]} Rb5+ {[%clk 00:00:08]}
{[%emt 00:00:02]} 51. Kg4 {[%clk 00:00:09]} a5 {[%clk 00:00:11]} 52. Rc3 {[%clk
00:00:06]} {[%emt 00:00:05]} Kg6 {[%clk 00:00:13]} {[%emt 00:00:01]} 53. a3
{[%clk 00:00:09]} a4 {[%clk 00:00:12]} {[%emt 00:00:04]} 54. Rc4 {[%clk
00:00:10]} f5+ {[%clk 00:00:11]} {[%emt 00:00:03]} 55. Kh3 {[%clk 00:00:09]}
{[%emt 00:00:04]} Rb3+ {[%clk 00:00:14]} 56. Kg2 {[%clk 00:00:11]} Rxa3 {[%clk
00:00:16]} 57. Rc6+ {[%clk 00:00:14]} Kh5 {[%clk 00:00:19]} 58. Rc8 {[%clk
00:00:16]} Kg4 {[%clk 00:00:21]} {[%emt 00:00:01]} 59. Rc4+ {[%clk 00:00:18]}
f4 {[%clk 00:00:23]} 60. Rc2 {[%clk 00:00:20]} Rb3 {[%clk 00:00:21]} {[%emt
00:00:05]} 61. Rc4 {[%clk 00:00:18]} {[%emt 00:00:05]} a3 {[%clk 00:00:23]}
{[%emt 00:00:02]} 62. Ra4 {[%clk 00:00:20]} Rb2+ {[%clk 00:00:21]} {[%emt
00:00:05]} 63. Kg1 {[%clk 00:00:22]} {[%emt 00:00:01]} a2 {[%clk 00:00:23]} 0-1

[Event "NJSK 2026 Jeugd B"]
[Site "Helmond, Netherlands"]
[Date "2026.05.01"]
[Round "11.1"]
[White "De Jong, Lode"]
[Black "Zecha, Oscar"]
[Result "0-1"]
[TimeControl "90min/40moves + 30min + 30sec/move"]
[WhiteTitle "-"]
[BlackTitle "-"]
[WhiteFideId "40101860"]
[BlackFideId "1073826"]
[WhiteElo "1902"]
[BlackElo "2120"]

1. d4 {[%clk 00:05:05]} Nf6 {[%clk 00:05:05]} 2. c4 {[%clk 00:05:08]} e6 {[%clk
00:05:07]} 3. g3 {[%clk 00:05:10]} {[%emt 00:00:02]} d5 {[%clk 00:05:09]} 4.
Bg2 {[%clk 00:05:12]} dxc4 {[%clk 00:05:12]} {[%emt 00:00:01]} 5. Nf3 {[%clk
00:05:11]} {[%emt 00:00:02]} Bb4+ {[%clk 00:05:14]} {[%emt 00:00:02]} 6. Nbd2
{[%clk 00:05:07]} {[%emt 00:00:06]} b5 {[%clk 00:05:00]} {[%emt 00:00:18]} 7.
a3 {[%clk 00:04:17]} {[%emt 00:00:54]} Be7 {[%clk 00:04:00]} {[%emt 00:01:03]}
8. a4 {[%clk 00:04:13]} {[%emt 00:00:06]} c6 {[%clk 00:03:56]} {[%emt
00:00:07]} 9. O-O {[%clk 00:04:08]} {[%emt 00:00:08]} O-O {[%clk 00:03:42]}
{[%emt 00:00:18]} 10. Qc2 {[%emt 00:02:25]} Nd5 {[%clk 00:03:39]} {[%emt
00:00:02]} 11. b3 {[%clk 00:01:24]} {[%emt 00:00:29]} c3 {[%clk 00:03:22]}
{[%emt 00:00:20]} 12. Ne4 {[%clk 00:01:26]} {[%emt 00:00:01]} b4 {[%clk
00:03:19]} {[%emt 00:00:06]} 13. Ne5 {[%clk 00:01:14]} {[%emt 00:00:15]} Bb7
{[%clk 00:02:36]} {[%emt 00:00:46]} 14. Nc5 {[%clk 00:01:03]} {[%emt 00:00:15]}
Bxc5 {[%clk 00:02:36]} {[%emt 00:00:03]} 15. dxc5 {[%clk 00:01:04]} Nd7 {[%clk
00:02:28]} {[%emt 00:00:11]} 16. Nd3 {[%clk 00:01:06]} {[%emt 00:00:02]} a5
{[%clk 00:02:23]} {[%emt 00:00:08]} 17. e4 {[%clk 00:01:01]} {[%emt 00:00:07]}
N5f6 {[%clk 00:02:08]} {[%emt 00:00:18]} 18. Bf4 {[%clk 00:00:58]} {[%emt
00:00:06]} Re8 {[%clk 00:00:34]} {[%emt 00:01:37]} 19. Rfd1 {[%clk 00:00:52]}
{[%emt 00:00:09]} e5 {[%clk 00:00:18]} {[%emt 00:00:20]} 20. Nxe5 {[%clk
00:00:48]} {[%emt 00:00:07]} Qe7 {[%clk 00:00:19]} {[%emt 00:00:02]} 21. Nxd7
{[%clk 00:00:42]} {[%emt 00:00:10]} Nxd7 {[%clk 00:00:20]} 22. Bd6 {[%clk
00:00:42]} {[%emt 00:00:02]} Qe6 {[%clk 00:00:10]} {[%emt 00:00:16]} 23. f4
{[%clk 00:00:40]} {[%emt 00:00:04]} Rad8 {[%clk 00:00:07]} {[%emt 00:00:05]} 24.
Rd4 {[%clk 00:00:15]} {[%emt 00:00:27]} Nf6 {[%clk 00:00:07]} {[%emt 00:00:03]}
25. Re1 {[%clk 00:00:13]} {[%emt 00:00:05]} Ba6 {[%clk 00:00:04]} {[%emt
00:00:06]} 26. f5 {[%clk 00:00:10]} {[%emt 00:00:06]} Qc8 {[%clk 00:00:06]}
{[%emt 00:00:02]} 27. e5 {[%clk 00:00:09]} {[%emt 00:00:03]} Nd5 {[%clk
00:00:08]} 28. Rxd5 {[%clk 00:00:07]} {[%emt 00:00:05]} cxd5 29. Bxd5 {[%clk
00:00:09]} Bb7 {[%clk 00:00:09]} {[%emt 00:00:04]} 30. Bc4 {[%clk 00:00:09]}
{[%emt 00:00:03]} Qc6 {[%clk 00:00:08]} {[%emt 00:00:04]} 31. Kf1 {[%clk
00:00:00]} {[%emt 00:00:09]} 0-1

[Event "NJSK 2026 Jeugd B"]
[Site "Helmond, Netherlands"]
[Date "2026.05.01"]
[Round "11.2"]
[White "Kurt, Sascha"]
[Black "Aravindhan, Achyuth"]
[Result "1-0"]
[TimeControl "90min/40moves + 30min + 30sec/move"]
[WhiteTitle "-"]
[BlackTitle "-"]
[WhiteFideId "1082647"]
[BlackFideId "1084216"]
[WhiteElo "2280"]
[BlackElo "2277"]

1. e4 {[%clk 00:05:05]} c5 {[%clk 00:05:06]} 2. Nf3 {[%clk 00:05:07]} Nc6
{[%clk 00:05:09]} 3. Bb5 {[%clk 00:05:09]} {[%emt 00:00:01]} g6 {[%clk
00:05:11]} 4. O-O {[%clk 00:05:09]} {[%emt 00:00:04]} Bg7 {[%clk 00:05:14]} 5.
Re1 {[%clk 00:05:01]} {[%emt 00:00:11]} e5 {[%clk 00:05:15]} {[%emt 00:00:01]}
6. Bxc6 {[%clk 00:04:59]} {[%emt 00:00:05]} dxc6 {[%clk 00:05:17]} 7. a4 {[%clk
00:05:02]} {[%emt 00:00:02]} Qe7 {[%clk 00:05:05]} {[%emt 00:00:15]} 8. Na3
{[%clk 00:05:03]} {[%emt 00:00:03]} Nh6 {[%clk 00:04:50]} {[%emt 00:00:15]} 9.
Nc4 {[%clk 00:04:55]} {[%emt 00:00:11]} f6 {[%clk 00:04:51]} {[%emt 00:00:01]}
10. d3 {[%clk 00:04:51]} {[%emt 00:00:07]} O-O {[%clk 00:04:47]} {[%emt
00:00:08]} 11. Be3 {[%clk 00:04:46]} {[%emt 00:00:07]} b6 {[%clk 00:04:35]}
{[%emt 00:00:15]} 12. c3 {[%clk 00:04:36]} {[%emt 00:00:13]} Be6 {[%clk
00:04:10]} {[%emt 00:00:29]} 13. Qc2 {[%clk 00:04:29]} {[%emt 00:00:10]} Nf7
{[%clk 00:04:07]} {[%emt 00:00:06]} 14. a5 {[%clk 00:04:18]} {[%emt 00:00:14]}
b5 {[%clk 00:03:54]} {[%emt 00:00:16]} 15. Ncd2 {[%clk 00:04:17]} {[%emt
00:00:03]} a6 {[%clk 00:03:48]} {[%emt 00:00:10]} 16. Nb3 {[%clk 00:04:14]}
{[%emt 00:00:05]} Bxb3 {[%clk 00:03:42]} {[%emt 00:00:09]} 17. Qxb3 {[%clk
00:04:16]} {[%emt 00:00:01]} Rfd8 {[%clk 00:03:39]} {[%emt 00:00:07]} 18. Rad1
{[%clk 00:04:07]} {[%emt 00:00:11]} Bf8 {[%clk 00:02:57]} {[%emt 00:00:46]} 19.
Qc2 {[%clk 00:03:59]} {[%emt 00:00:10]} Qc7 {[%clk 00:02:57]} {[%emt 00:00:03]}
20. d4 {[%clk 00:03:53]} {[%emt 00:00:10]} Qxa5 {[%clk 00:02:51]} {[%emt
00:00:09]} 21. dxc5 {[%clk 00:03:37]} {[%emt 00:00:18]} Rxd1 {[%clk 00:02:31]}
{[%emt 00:00:24]} 22. Rxd1 {[%clk 00:03:39]} Rd8 {[%clk 00:02:33]} 23. h4
{[%clk 00:03:23]} {[%emt 00:00:19]} h5 {[%clk 00:02:22]} {[%emt 00:00:13]} 24.
b4 {[%clk 00:02:43]} {[%emt 00:00:43]} Rxd1+ {[%clk 00:02:10]} {[%emt
00:00:15]} 25. Qxd1 {[%clk 00:02:45]} Qa3 {[%clk 00:02:13]} 26. Qd7 {[%clk
00:02:30]} {[%emt 00:00:18]} Qxc3 {[%clk 00:01:53]} {[%emt 00:00:23]} 27. Qxc6
{[%clk 00:02:32]} Qxb4 {[%clk 00:01:06]} {[%emt 00:00:50]} 28. Qxf6 {[%clk
00:02:28]} {[%emt 00:00:05]} Qxe4 {[%clk 00:00:51]} {[%emt 00:00:19]} 29. Qxa6
{[%clk 00:02:19]} {[%emt 00:00:13]} b4 {[%clk 00:00:41]} {[%emt 00:00:12]} 30.
Qb6 {[%clk 00:01:35]} {[%emt 00:00:46]} Kg7 {[%clk 00:00:16]} {[%emt 00:00:34]}
31. c6 {[%clk 00:01:30]} {[%emt 00:00:07]} Bd6 {[%clk 00:00:10]} {[%emt
00:00:06]} 32. Qb7 {[%clk 00:01:22]} {[%emt 00:00:10]} b3 {[%clk 00:00:08]}
{[%emt 00:00:06]} 33. Qxf7+ {[%clk 00:01:15]} {[%emt 00:00:09]} Kxf7 {[%clk
00:00:07]} {[%emt 00:00:04]} 34. Ng5+ {[%clk 00:01:18]} Ke8 {[%clk 00:00:06]}
{[%emt 00:00:03]} 35. Nxe4 {[%clk 00:01:19]} {[%emt 00:00:02]} Bb4 {[%clk
00:00:07]} {[%emt 00:00:01]} 36. Bc1 {[%clk 00:01:15]} {[%emt 00:00:08]} Kd8
{[%clk 00:00:07]} {[%emt 00:00:04]} 37. Bb2 {[%clk 00:01:06]} {[%emt 00:00:12]}
Kc7 {[%clk 00:00:05]} {[%emt 00:00:04]} 38. Bxe5+ Kxc6 {[%clk 00:00:08]} 39.
Bb2 {[%clk 00:01:01]} {[%emt 00:00:08]} Kd5 {[%clk 00:00:08]} {[%emt 00:00:03]}
40. f3 {[%clk 00:00:59]} {[%emt 00:00:06]} Ke6 {[%clk 00:00:08]} {[%emt
00:00:03]} 41. Kf2 {[%clk 00:01:00]} {[%emt 00:00:02]} Kf5 {[%clk 00:00:10]} 42.
g3 {[%clk 00:00:59]} {[%emt 00:00:04]} Ba5 {[%clk 00:00:11]} {[%emt 00:00:02]}
43. Ke2 {[%clk 00:01:01]} Bc7 {[%clk 00:00:12]} {[%emt 00:00:01]} 44. Kd3
{[%clk 00:01:02]} {[%emt 00:00:03]} 1-0

[Event "NJSK 2026 Jeugd B"]
[Site "Helmond, Netherlands"]
[Date "2026.05.01"]
[Round "11.3"]
[White "Groenewoud, Joel"]
[Black "Baarspul, Bram"]
[Result "0-1"]
[TimeControl "90min/40moves + 30min + 30sec/move"]
[WhiteTitle "-"]
[BlackTitle "-"]
[WhiteFideId "1087746"]
[BlackFideId "40106187"]
[WhiteElo "2114"]
[BlackElo "2177"]

1. e4 {[%clk 00:05:05]} {[%emt 00:00:01]} c5 {[%clk 00:05:06]} 2. Nf3 {[%clk
00:05:07]} d6 {[%clk 00:05:08]} {[%emt 00:00:01]} 3. d4 {[%clk 00:05:09]} cxd4
{[%clk 00:05:10]} 4. Nxd4 {[%clk 00:05:11]} Nf6 {[%clk 00:05:12]} 5. Nc3 {[%clk
00:05:13]} {[%emt 00:00:01]} a6 {[%clk 00:05:14]} 6. g3 {[%clk 00:05:14]}
{[%emt 00:00:01]} Nc6 {[%clk 00:05:06]} {[%emt 00:00:11]} 7. Bg2 {[%clk
00:05:11]} {[%emt 00:00:07]} g6 {[%clk 00:05:04]} {[%emt 00:00:05]} 8. O-O
{[%clk 00:05:07]} {[%emt 00:00:07]} Nxd4 {[%clk 00:05:05]} {[%emt 00:00:02]} 9.
Qxd4 {[%clk 00:05:08]} {[%emt 00:00:06]} Bg7 {[%clk 00:05:07]} 10. Be3 {[%clk
00:05:06]} {[%emt 00:00:05]} O-O {[%clk 00:05:06]} {[%emt 00:00:02]} 11. Qd3
{[%clk 00:04:59]} {[%emt 00:00:08]} Ng4 {[%clk 00:04:46]} {[%emt 00:00:22]} 12.
Bd2 {[%clk 00:04:51]} {[%emt 00:00:12]} Ne5 {[%clk 00:04:45]} {[%emt 00:00:04]}
13. Qe2 {[%clk 00:04:52]} {[%emt 00:00:02]} Bg4 {[%clk 00:04:41]} {[%emt
00:00:06]} 14. f3 {[%clk 00:04:41]} {[%emt 00:00:15]} Be6 {[%clk 00:04:42]}
{[%emt 00:00:01]} 15. Nd5 {[%clk 00:04:36]} {[%emt 00:00:09]} Rc8 {[%clk
00:04:09]} {[%emt 00:00:36]} 16. c3 {[%clk 00:04:28]} {[%emt 00:00:12]} Nc4
{[%clk 00:03:37]} {[%emt 00:00:34]} 17. Bc1 {[%clk 00:04:28]} {[%emt 00:00:03]}
b5 {[%clk 00:03:24]} {[%emt 00:00:16]} 18. f4 {[%clk 00:04:18]} {[%emt
00:00:12]} Bxd5 {[%clk 00:02:59]} {[%emt 00:00:29]} 19. exd5 {[%clk 00:04:18]}
{[%emt 00:00:01]} b4 {[%clk 00:02:53]} {[%emt 00:00:11]} 20. cxb4 {[%clk
00:03:25]} {[%emt 00:00:56]} Qb6+ {[%clk 00:02:48]} {[%emt 00:00:08]} 21. Kh1
{[%clk 00:03:24]} {[%emt 00:00:04]} Qxb4 {[%clk 00:02:17]} {[%emt 00:00:35]} 22.
Be4 {[%clk 00:03:11]} {[%emt 00:00:15]} Nxb2 {[%clk 00:01:51]} {[%emt
00:00:29]} 23. Rb1 {[%clk 00:02:53]} {[%emt 00:00:21]} Qc4 {[%clk 00:01:34]}
{[%emt 00:00:20]} 24. Rxb2 {[%clk 00:02:22]} {[%emt 00:00:34]} Bxb2 {[%clk
00:01:26]} {[%emt 00:00:11]} 25. Bd3 {[%clk 00:01:41]} {[%emt 00:00:44]} Qxd5+
{[%clk 00:01:15]} {[%emt 00:00:13]} 26. Be4 {[%clk 00:01:44]} {[%emt 00:00:01]}
Qc4 {[%clk 00:01:03]} {[%emt 00:00:15]} 27. Bd3 {[%clk 00:01:06]} {[%emt
00:00:42]} Qc6+ {[%clk 00:00:58]} {[%emt 00:00:08]} 28. Be4 {[%clk 00:01:06]}
{[%emt 00:00:04]} d5 {[%clk 00:00:55]} {[%emt 00:00:05]} 29. Bxb2 {[%clk
00:00:58]} {[%emt 00:00:11]} dxe4 {[%clk 00:00:55]} {[%emt 00:00:04]} 30. Rc1
{[%clk 00:01:00]} Qb7 {[%clk 00:00:48]} {[%emt 00:00:11]} 31. Re1 {[%clk
00:00:54]} {[%emt 00:00:08]} Qb5 {[%clk 00:00:35]} {[%emt 00:00:14]} 32. Qxb5
{[%clk 00:00:40]} {[%emt 00:00:18]} axb5 {[%clk 00:00:37]} 33. Rxe4 {[%clk
00:00:41]} {[%emt 00:00:02]} Rc2 {[%clk 00:00:39]} {[%emt 00:00:02]} 34. Rb4
{[%clk 00:00:39]} {[%emt 00:00:05]} Rd8 {[%clk 00:00:39]} {[%emt 00:00:03]} 0-1

[Event "NJSK 2026 Jeugd B"]
[Site "Helmond, Netherlands"]
[Date "2026.05.01"]
[Round "12.1"]
[White "Baarspul, Bram"]
[Black "De Jong, Lode"]
[Result "1/2-1/2"]
[TimeControl "90min/40moves + 30min + 30sec/move"]
[WhiteTitle "-"]
[BlackTitle "-"]
[WhiteFideId "40106187"]
[BlackFideId "40101860"]
[WhiteElo "2177"]
[BlackElo "1902"]

1. e4 {[%clk 00:05:05]} {[%emt 00:00:01]} c5 {[%clk 00:05:03]} {[%emt
00:00:09]} 2. Nf3 {[%clk 00:05:07]} d6 {[%clk 00:05:05]} 3. d4 {[%clk
00:05:08]} {[%emt 00:00:02]} cxd4 {[%clk 00:05:07]} {[%emt 00:00:04]} 4. Nxd4
{[%clk 00:05:09]} Nf6 {[%clk 00:05:08]} {[%emt 00:00:03]} 5. Nc3 {[%clk
00:05:12]} {[%emt 00:00:04]} a6 {[%clk 00:05:11]} 6. Bd3 {[%clk 00:05:14]} e5
{[%clk 00:05:09]} {[%emt 00:00:15]} 7. Nde2 {[%clk 00:05:16]} {[%emt 00:00:01]}
Be7 {[%clk 00:05:09]} {[%emt 00:00:05]} 8. O-O {[%clk 00:05:16]} {[%emt
00:00:05]} O-O {[%clk 00:05:09]} 9. Ng3 {[%clk 00:05:17]} {[%emt 00:00:13]} b5
{[%clk 00:05:06]} {[%emt 00:00:07]} 10. a4 {[%clk 00:05:15]} b4 {[%clk
00:05:07]} 11. Nd5 {[%clk 00:05:17]} Nxd5 {[%clk 00:05:08]} 12. exd5 {[%clk
00:05:18]} f5 {[%clk 00:04:46]} {[%emt 00:00:02]} 13. f4 {[%clk 00:04:47]}
{[%emt 00:00:34]} e4 {[%clk 00:04:44]} {[%emt 00:00:05]} 14. Bc4 {[%clk
00:04:41]} {[%emt 00:00:10]} a5 {[%clk 00:04:21]} {[%emt 00:00:25]} 15. Be3
{[%clk 00:04:28]} {[%emt 00:00:17]} Nd7 {[%clk 00:04:06]} {[%emt 00:00:17]} 16.
Qe2 {[%clk 00:04:11]} {[%emt 00:00:20]} Nb6 {[%clk 00:03:56]} {[%emt 00:00:13]}
17. Rfd1 {[%clk 00:03:24]} {[%emt 00:00:51]} Nxc4 {[%clk 00:03:35]} {[%emt
00:00:24]} 18. Qxc4 {[%clk 00:03:26]} {[%emt 00:00:01]} Ba6 {[%emt 00:00:02]}
19. Qb3 {[%clk 00:02:59]} {[%emt 00:00:28]} Qc7 {[%clk 00:03:39]} {[%emt
00:00:02]} 20. c3 {[%clk 00:02:42]} {[%emt 00:00:20]} Bc4 {[%clk 00:03:14]}
{[%emt 00:00:27]} 21. Qc2 {[%clk 00:02:43]} {[%emt 00:00:03]} bxc3 {[%clk
00:03:05]} {[%emt 00:00:11]} 22. Qxc3 {[%clk 00:02:39]} {[%emt 00:00:07]} Bf6
{[%clk 00:02:35]} {[%emt 00:00:34]} 23. Bd4 {[%clk 00:02:22]} {[%emt 00:00:20]}
Bxd4+ {[%clk 00:02:36]} {[%emt 00:00:02]} 24. Qxd4 {[%clk 00:02:01]} {[%emt
00:00:24]} Bb3 {[%clk 00:02:26]} {[%emt 00:00:14]} 25. Rdc1 {[%clk 00:01:55]}
{[%emt 00:00:09]} Qa7 {[%clk 00:02:28]} 26. Qxa7 {[%clk 00:01:51]} {[%emt
00:00:09]} Rxa7 {[%clk 00:02:31]} {[%emt 00:00:06]} 27. Rc6 {[%clk 00:01:04]}
{[%emt 00:00:41]} Rf6 {[%clk 00:02:33]} {[%emt 00:00:01]} 28. Rc8+ {[%clk
00:00:55]} {[%emt 00:00:12]} Kf7 {[%clk 00:02:33]} {[%emt 00:00:02]} 29. Rac1
{[%clk 00:00:51]} {[%emt 00:00:07]} Bxd5 {[%clk 00:01:15]} {[%emt 00:01:21]} 30.
R8c7+ {[%clk 00:00:53]} {[%emt 00:00:01]} Rxc7 {[%clk 00:01:17]} 31. Rxc7+
{[%clk 00:00:54]} {[%emt 00:00:02]} Kg6 {[%clk 00:01:16]} {[%emt 00:00:04]} 32.
Ra7 {[%clk 00:00:52]} {[%emt 00:00:06]} Bc4 {[%clk 00:01:10]} {[%emt 00:00:11]}
33. Kf2 {[%clk 00:00:36]} {[%emt 00:00:17]} d5 {[%clk 00:01:12]} 34. Rxa5
{[%clk 00:00:34]} {[%emt 00:00:05]} Ra6 {[%clk 00:00:45]} {[%emt 00:00:30]} 35.
Rxa6+ {[%clk 00:00:28]} {[%emt 00:00:10]} Bxa6 {[%clk 00:00:47]} 36. Ke3 {[%clk
00:00:29]} {[%emt 00:00:02]} Kf6 {[%clk 00:00:46]} {[%emt 00:00:04]} 37. b4
{[%clk 00:00:31]} {[%emt 00:00:02]} Ke6 {[%clk 00:00:35]} {[%emt 00:00:13]} 38.
b5 {[%clk 00:00:26]} {[%emt 00:00:08]} Bc8 {[%clk 00:00:37]} 39. Kd4 {[%clk
00:00:19]} {[%emt 00:00:09]} Kd6 {[%clk 00:00:39]} 40. a5 {[%clk 00:00:21]}
{[%emt 00:00:02]} Bd7 {[%clk 00:00:33]} {[%emt 00:00:08]} 41. a6 {[%clk
00:00:16]} {[%emt 00:00:08]} Kc7 {[%clk 00:00:35]} {[%emt 00:00:02]} 42. Kc5
{[%clk 00:00:11]} {[%emt 00:00:08]} g6 {[%clk 00:00:19]} {[%emt 00:00:19]} 43.
b6+ {[%clk 00:00:12]} {[%emt 00:00:02]} Kb8 {[%clk 00:00:22]} 44. Kxd5 {[%clk
00:00:13]} {[%emt 00:00:02]} Bb5 {[%clk 00:00:23]} 45. a7+ {[%clk 00:00:14]}
{[%emt 00:00:03]} Kb7 {[%clk 00:00:26]} 46. Kc5 {[%clk 00:00:16]} Bd3 {[%clk
00:00:10]} {[%emt 00:00:18]} 47. Kd4 {[%clk 00:00:13]} {[%emt 00:00:07]} Bb5
{[%clk 00:00:11]} {[%emt 00:00:02]} 48. Kc5 {[%clk 00:00:06]} {[%emt 00:00:09]}
Bd3 {[%clk 00:00:13]} {[%emt 00:00:02]} 49. Kd4 {[%clk 00:00:05]} {[%emt
00:00:04]} Bb5 {[%clk 00:00:08]} {[%emt 00:00:07]} 50. h4 {[%clk 00:00:07]}
{[%emt 00:00:02]} Bc6 {[%clk 00:00:06]} {[%emt 00:00:06]} 51. Kc5 {[%clk
00:00:05]} {[%emt 00:00:04]} e3 {[%clk 00:00:08]} 52. Kd4 {[%clk 00:00:05]}
{[%emt 00:00:03]} Kxb6 {[%clk 00:00:07]} {[%emt 00:00:03]} 53. Kxe3 {[%clk
00:00:07]} {[%emt 00:00:02]} Bxg2 {[%clk 00:00:08]} {[%emt 00:00:02]} 54. Kf2
{[%clk 00:00:07]} {[%emt 00:00:02]} Bd5 {[%clk 00:00:07]} {[%emt 00:00:03]} 55.
h5 {[%clk 00:00:09]} {[%emt 00:00:03]} Kxa7 {[%clk 00:00:09]} {[%emt 00:00:01]}
56. hxg6 {[%clk 00:00:09]} {[%emt 00:00:02]} hxg6 {[%clk 00:00:11]} 57. Ke3
{[%clk 00:00:11]} {[%emt 00:00:01]} Kb6 {[%clk 00:00:13]} {[%emt 00:00:01]}
1/2-1/2